bitfinex-derivatives/quotes_ETHF0:USTF0_20250923
["timestamp","ask_amount","ask_price","bid_price","bid_amount"]
[1758630193438,0.42936,4189.4,4189.3,0.5424]
[1758630193643,4.4261,4189.7,4189.1,0.3205]
[1758630193644,1.17048,4189.2,4189.1,0.3205]
[1758630194040,1.17048,4189.2,4189.1,0.5424]
[1758630194636,0.7411,4188.9,4188.8,0.5424]
[1758630194942,1.17051,4188.9,4188.8,0.5424]
[1758630195645,1.17051,4188.9,4188.8,0.3205]
[1758630197748,0.42944,4188.6,4188.1,3.4508]
[1758630197947,1.16734,4188.6,4188.2,0.42947]
[1758630198149,0.42946,4188.4,4188.2,0.42947]
[1758630198345,0.85026,4188.4,4188.3,0.5504]
[1758630198944,1.16736,4188.4,4188.3,0.5504]
[1758630200048,0.6638,4188.4,4188.2,0.3327]
[1758630200251,1.16739,4188.1,4188.0,0.4608]
[1758630200448,0.4208,4188.1,4188.0,1.3272]
[1758630200653,1.16739,4188.1,4188.0,0.9799]
[1758630200952,1.16739,4188.1,4188.0,0.5504]
[1758630201644,1.16739,4188.1,4188.0,1.1066]
[1758630202145,0.85029,4188.1,4188.0,0.8963]
[1758630202648,0.85029,4188.1,4188.0,1.3258]
[1758630203152,0.85029,4188.1,4188.0,0.8963]
[1758630203842,0.89185859,4188.1,4188.0,0.8963]
[1758630206656,1.19615859,4188.1,4188.0,0.3327]
[1758630207349,1.19615859,4188.1,4188.0,0.5472]
[1758630208449,0.46236859,4188.1,4188.0,1.3201]
[1758630208751,0.89185859,4188.1,4188.0,1.3201]
[1758630209144,0.46236859,4188.1,4188.0,1.3201]
[1758630209350,0.89185859,4188.1,4188.0,1.3201]
[1758630209550,0.46236859,4188.1,4188.0,1.3201]
[1758630209850,0.89185859,4188.1,4188.0,1.3201]
[1758630210048,0.89185859,4188.1,4188.0,0.8906]
[1758630210954,0.46236859,4188.1,4188.0,1.3201]
[1758630212555,0.89185859,4188.1,4188.0,1.3201]
[1758630212758,0.89185859,4188.1,4188.0,0.8906]
[1758630212958,0.46236859,4188.1,4188.0,1.3201]
[1758630213150,0.04156859,4188.1,4188.0,1.3201]
[1758630213748,0.47105859,4188.1,4188.0,0.8906]
[1758630213954,0.68305859,4188.1,4188.0,0.8906]
[1758630214159,0.68305859,4188.1,4188.0,1.3201]
[1758630214356,0.25356859,4188.1,4188.0,1.3201]
[1758630215060,0.68305859,4188.1,4188.0,1.3201]
[1758630215252,0.68305859,4188.1,4188.0,0.8906]
[1758630215760,0.68305859,4188.1,4188.0,1.3201]
[1758630216168,0.25356859,4188.1,4188.0,1.3201]
[1758630217265,0.04156859,4188.1,4188.0,1.3201]
[1758630217470,0.47105859,4188.1,4188.0,0.8906]
[1758630217965,0.04156859,4188.1,4188.0,1.3201]
[1758630218568,0.89505859,4188.1,4188.0,0.8906]
[1758630218767,1.19935859,4188.1,4188.0,0.8906]
[1758630219665,1.19935859,4188.1,4188.0,4.5279]
[1758630219666,0.04156859,4188.1,4188.0,4.5279]
[1758630219869,0.04156859,4188.1,4188.0,4.0984]
[1758630220169,0.04156859,4188.1,4188.0,4.5279]
[1758630227772,0.04156859,4188.1,4188.0,1.3201]
[1758630230067,0.46556859,4188.1,4188.0,0.8906]
[1758630230263,0.89505859,4188.1,4188.0,0.8906]
[1758630230877,0.25356859,4188.1,4188.0,1.3201]
[1758630231077,0.04156859,4188.1,4188.0,1.3201]
[1758630234479,0.25296859,4188.1,4188.0,0.8906]
[1758630234779,0.89915859,4188.1,4188.0,0.8906]
[1758630234980,1.22425859,4188.1,4188.0,0.8906]
[1758630235178,0.46966859,4188.1,4188.0,0.8906]
[1758630235377,0.04156859,4188.1,4188.0,1.3201]
[1758630235980,0.47105859,4188.1,4188.0,0.8906]
[1758630236681,1.22425859,4188.1,4188.0,0.3327]
[1758630236882,0.85764,4187.6,4187.5,0.8615]
[1758630237179,4.06544,4187.6,4187.5,0.8615]
[1758630237376,3.84874,4187.6,4187.5,0.8615]
[1758630237579,4.06544,4187.6,4187.5,0.8615]
[1758630238181,3.4192,4187.6,4187.5,0.8615]
[1758630238376,3.2078,4187.6,4187.5,1.29105]
[1758630238683,0.4295,4188.0,4187.9,0.7334]
[1758630238872,0.04156859,4188.1,4188.0,0.864]
[1758630239180,0.71305859,4188.1,4188.0,0.864]
[1758630240579,0.92445859,4188.1,4188.0,0.864]
[1758630243181,1.14115859,4188.1,4188.0,0.864]
[1758630243683,0.68245859,4188.1,4188.0,0.864]
[1758630243877,0.92445859,4188.1,4188.0,0.864]
[1758630244784,0.49496859,4188.1,4188.0,0.864]
[1758630244985,0.25296859,4188.1,4188.0,0.864]
[1758630245284,0.49496859,4188.1,4188.0,0.864]
[1758630245485,0.49496859,4188.1,4188.0,1.2935]
[1758630247488,0.49496859,4188.1,4188.0,0.864]
[1758630247885,0.92445859,4188.1,4188.0,0.864]
[1758630248187,0.49496859,4188.1,4188.0,1.2935]
[1758630249791,0.28356859,4188.1,4188.0,1.2935]
[1758630249993,0.25296859,4188.1,4188.0,0.864]
[1758630250191,0.49496859,4188.1,4188.0,0.864]
[1758630250692,0.92445859,4188.1,4188.0,0.864]
[1758630252792,0.49496859,4188.1,4188.0,1.2935]
[1758630253494,0.92445859,4188.1,4188.0,1.2935]
[1758630254082,0.92445859,4188.1,4188.0,0.864]
[1758630254288,0.92445859,4188.1,4188.0,1.2935]
[1758630254794,0.49496859,4188.1,4188.0,1.2935]
[1758630256090,0.04156859,4188.1,4188.0,1.2935]
[1758630256289,0.49576859,4188.1,4188.0,0.864]
[1758630256494,1.02606859,4188.1,4188.0,0.864]
[1758630257295,0.5303,4187.6,4187.0,3.5456]
[1758630257595,0.2122,4187.2,4187.1,0.7325]
[1758630257892,0.64178,4187.2,4187.1,0.7325]
[1758630258096,0.242,4187.3,4187.1,0.7325]
[1758630258294,3.2078,4187.5,4187.4,1.16206]
[1758630258499,3.2078,4187.5,4187.4,0.7325]
[1758630258792,3.2078,4187.5,4187.4,1.16206]
[1758630258992,0.88374,4187.6,4187.5,0.8578]
[1758630259499,1.08904,4187.6,4187.5,0.8578]
[1758630259884,1.41404,4187.6,4187.5,0.8578]
[1758630260084,1.41404,4187.6,4187.5,0.5233]
[1758630260490,0.6595,4187.6,4187.5,0.8578]
[1758630260998,3.8495,4188.0,4187.9,0.4189]
[1758630261294,3.8495,4188.0,4187.9,0.7325]
[1758630261495,4.0915,4188.0,4187.9,0.7325]
[1758630262501,3.8495,4188.0,4187.9,0.7325]
[1758630262698,4.0915,4188.0,4187.9,0.7325]
[1758630263301,4.0654,4188.0,4187.9,0.7325]
[1758630263502,4.6144,4188.0,4187.9,0.7325]
[1758630264203,4.3724,4188.0,4187.9,0.7325]
[1758630264394,4.6144,4188.0,4187.9,0.7325]
[1758630264602,0.84834,4187.7,4187.6,0.5266]
[1758630264796,1.39734,4187.7,4187.6,0.5266]
[1758630265696,1.39734,4187.7,4187.6,0.3161]
[1758630265899,0.4188,4187.2,4187.1,1.17199]
[1758630266097,0.67156,4187.4,4187.2,0.42958]
[1758630266305,0.87446,4187.4,4187.3,0.7424]
[1758630266505,0.4449,4187.4,4187.3,0.7424]
[1758630266806,0.4449,4187.4,4187.3,1.17197]
[1758630267199,0.87446,4187.4,4187.3,0.7424]
[1758630267602,0.4449,4187.4,4187.3,0.7424]
[1758630267805,0.4449,4187.4,4187.3,1.17197]
[1758630268106,0.2029,4187.4,4187.3,1.17197]
[1758630268302,0.42953,4187.8,4187.7,0.2105]
[1758630268507,0.87443,4187.8,4187.7,0.7424]
[1758630268709,1.39733,4187.8,4187.7,0.3161]
[1758630270414,1.39733,4187.8,4187.7,0.5266]
[1758630275216,0.9678,4187.8,4187.7,0.5266]
[1758630275514,3.63731,4188.0,4187.9,0.7424]
[1758630275707,4.29811,4188.0,4187.9,0.7424]
[1758630275908,4.60511,4188.0,4187.9,0.7424]
[1758630277514,3.6266,4188.0,4187.9,1.17191]
[1758630277813,3.2078,4188.0,4187.9,1.17191]
[1758630278010,3.4498,4188.0,4187.9,1.17191]
[1758630278511,0.242,4188.0,4187.9,1.17191]
[1758630278908,0.04156859,4188.1,4188.0,0.8753]
[1758630279116,0.04156859,4188.1,4188.0,1.3016]
[1758630281621,0.04156859,4188.1,4188.0,5.3016]
[1758630283623,3.2078,4189.0,4188.9,0.85571]
[1758630283816,4.363,4189.0,4188.9,0.7424]
[1758630284719,4.363,4189.0,4188.7,0.42943]
[1758630284720,0.4188,4188.2,4188.1,0.7424]
[1758630284921,0.4188,4188.2,4188.1,1.17189]
[1758630285315,0.4188,4188.2,4188.1,0.7424]
[1758630285719,0.4188,4188.2,4188.1,1.17189]
[1758630285920,0.4188,4188.2,4188.1,0.7424]
[1758630286221,0.4188,4188.2,4188.1,1.17189]
[1758630286420,0.2029,4188.2,4188.1,1.17189]
[1758630286626,0.2029,4188.5,4188.4,0.7424]
[1758630286919,0.84825,4188.5,4188.4,0.7424]
[1758630287624,1.15525,4188.5,4188.4,0.7424]
[1758630287928,1.15525,4188.5,4188.4,0.5266]
[1758630288427,1.19681537,4188.5,4188.4,0.5266]
[1758630288824,1.19681537,4188.5,4188.4,0.3161]
[1758630289023,0.04156537,4188.5,4188.4,0.7424]
[1758630289530,0.47101537,4188.5,4188.4,0.7424]
[1758630290029,0.67391537,4188.5,4188.4,0.7424]
[1758630291725,0.24446537,4188.5,4188.4,0.7424]
[1758630292024,0.04156537,4188.5,4188.4,1.17186]
[1758630293830,0.25116537,4188.5,4188.4,1.17186]
[1758630294129,0.04156537,4188.5,4188.4,1.17186]
[1758630294933,1.22061537,4188.5,4188.4,0.7424]
[1758630295125,0.2096,4188.2,4188.1,0.5424]
[1758630295429,0.85458,4188.2,4188.1,0.7638]
[1758630295623,0.4251,4188.2,4188.1,0.7638]
[1758630295925,0.85458,4188.2,4188.1,0.7638]
[1758630296127,0.4251,4188.2,4188.1,0.7638]
[1758630296528,0.4251,4188.2,4188.1,1.19329]
[1758630298727,0.85458,4188.2,4188.1,0.7638]
[1758630298931,0.4251,4188.2,4188.1,0.7638]
[1758630300932,0.4251,4188.2,4188.1,1.19329]
[1758630301233,0.85458,4188.2,4188.1,0.7638]
[1758630301732,0.42948,4188.2,4188.1,0.7638]
[1758630302334,0.63908,4188.2,4188.1,0.7638]
[1758630302631,1.17908,4188.2,4188.1,0.7638]
[1758630303029,0.9916,4188.2,4188.0,0.1297]
[1758630303234,0.85463,4187.7,4187.6,0.5424]
[1758630303435,0.85463,4187.7,4187.6,0.7638]
[1758630304033,3.2078,4187.9,4187.6,0.86734]
[1758630304234,3.2078,4187.9,4187.8,0.7638]
[1758630304431,0.67149,4188.2,4188.1,0.7638]
[1758630304629,0.88109,4188.2,4188.1,0.7638]
[1758630306135,3.24936537,4188.5,4188.2,0.326]
[1758630306338,3.24936537,4188.5,4188.4,1.19326]
[1758630308524,3.2078,4188.5,4188.4,1.19326]
[1758630309434,0.63901,4188.9,4188.8,0.2164]
[1758630309645,0.2096,4188.9,4188.8,1.19322]
[1758630309831,0.2511603,4188.9,4188.8,1.19322]
[1758630311034,0.0415603,4188.9,4188.8,1.19322]
[1758630311336,3.2078,4189.5,4189.4,0.42936]
[1758630311532,3.2078,4189.5,4189.4,0.7531]
[1758630311733,3.2078,4189.5,4189.4,1.18246]
[1758630313639,3.4209,4190.1,4190.0,0.8872]
[1758630313840,4.30349,4190.1,4190.0,0.8872]
[1758630314043,4.34503988,4190.1,4190.0,0.8872]
[1758630314239,3.91574988,4190.1,4190.0,0.8872]
[1758630314540,3.91574988,4190.1,4190.0,1.3165]
[1758630314741,3.91574988,4190.1,4190.0,0.8872]
[1758630314939,3.67374988,4190.1,4190.0,1.3165]
[1758630315133,3.24934988,4190.1,4190.0,1.3165]
[1758630316734,3.67374988,4190.1,4190.0,0.8872]
[1758630316933,3.99714988,4190.1,4190.0,0.532]
[1758630317238,3.99714988,4190.1,4190.0,0.3286]
[1758630318241,3.99714988,4190.1,4189.7,0.3286]
[1758630318242,0.3234,4189.9,4189.7,0.3286]
[1758630318439,0.4293,4190.0,4189.7,0.3286]
[1758630318440,0.4244,4189.8,4189.7,0.96132]
[1758630318645,0.7478,4189.8,4189.7,0.96132]
[1758630320142,0.7478,4189.8,4189.7,1.18242]
[1758630320345,0.4244,4189.8,4189.7,1.18242]
[1758630320739,0.2131,4189.8,4189.7,1.18242]
[1758630321341,0.242,4190.0,4189.9,0.42931]
[1758630321537,0.242,4190.0,4189.9,1.18241]
[1758630321738,3.24934988,4190.1,4190.0,0.8872]
[1758630321938,3.46244988,4190.1,4190.0,0.8872]
[1758630322347,3.46244988,4190.1,4190.0,1.3165]
[1758630323245,3.89172988,4190.1,4190.0,0.8872]
[1758630323439,4.42792988,4190.1,4190.0,0.532]
[1758630323641,4.42792988,4190.1,4190.0,0.3286]
[1758630324245,3.24934988,4190.1,4189.7,0.3367]
[1758630324444,1.17592,4189.8,4189.7,0.542]
[1758630325143,0.4217,4189.8,4189.5,0.3367]
[1758630325447,1.17594,4189.6,4189.5,0.3367]
[1758630325645,4.62574,4189.6,4189.5,0.3367]
[1758630325847,0.4217,4189.2,4189.1,0.542]
[1758630326240,3.4498,4189.6,4189.3,0.42937]
[1758630326441,4.62574,4189.6,4189.5,0.542]
[1758630327045,4.62574,4189.6,4189.5,0.6691]
[1758630329745,4.62574,4189.6,4189.5,0.3367]
[1758630330250,0.64478,4189.2,4189.1,0.542]
[1758630330441,0.85108,4189.2,4189.1,0.542]
[1758630330643,1.17598,4189.2,4189.1,0.3367]
[1758630330847,1.17598,4189.2,4189.1,0.542]
[1758630331155,0.7466,4189.2,4189.1,0.542]
[1758630331354,0.7466,4189.2,4189.1,1.18719]
[1758630331754,1.17598,4189.2,4189.1,0.7578]
[1758630333752,1.17598,4189.2,4189.1,0.542]
[1758630335154,1.17598,4189.2,4189.1,0.3367]
[1758630335655,1.17598,4189.2,4189.1,0.542]
[1758630336556,1.17598,4189.2,4189.1,0.3367]
[1758630338254,1.37189137,4189.2,4189.1,0.3367]
[1758630340059,1.17598,4189.2,4189.1,0.3367]
[1758630340960,1.17598,4189.2,4189.1,0.542]
[1758630345062,0.4217,4189.2,4189.1,0.7578]
[1758630345361,0.4217,4189.2,4189.1,1.18719]
[1758630345555,0.85108,4189.2,4189.1,1.18719]
[1758630345755,0.85108,4189.2,4189.1,0.7578]
[1758630346359,0.2154,4189.2,4189.1,0.7578]
[1758630346559,0.242,4189.3,4189.2,0.3367]
[1758630346756,0.4574,4189.3,4189.2,0.7578]
[1758630347464,0.88677,4189.3,4189.2,0.7578]
[1758630347860,0.2154,4189.3,4189.2,1.18718]
[1758630348464,0.64477,4189.3,4189.2,0.7578]
[1758630348669,0.85107,4189.3,4189.2,0.7578]
[1758630349466,1.17597,4189.3,4189.2,0.7578]
[1758630350060,0.85107,4189.3,4189.2,0.7578]
[1758630350363,1.09306,4189.4,4189.3,0.7578]
[1758630350665,0.9886,4189.4,4189.3,0.7578]
[1758630350866,0.6637,4189.4,4189.3,0.7578]
[1758630351363,1.09306,4189.4,4189.3,0.7578]
[1758630352966,0.4217,4189.4,4189.3,0.7578]
[1758630353166,0.4217,4189.4,4189.3,1.18717]
[1758630354367,0.2154,4189.4,4189.3,1.18717]
[1758630355564,3.87914,4189.6,4189.5,0.3519]
[1758630355767,4.29074,4189.6,4189.5,0.8899]
[1758630355970,4.60764,4189.6,4189.5,0.6876]
[1758630356164,4.60764,4189.6,4189.5,0.5531]
[1758630356769,4.60764,4189.6,4189.5,0.6876]
[1758630358070,4.29074,4189.6,4189.5,0.8899]
[1758630358264,4.60764,4189.6,4189.5,0.8899]
[1758630360470,4.1783,4189.6,4189.5,0.8899]
[1758630360666,3.9363,4189.6,4189.5,1.31925]
[1758630360971,3.2078,4189.6,4189.5,1.31925]
[1758630361170,0.04154988,4190.1,4190.0,1.3192]
[1758630361665,0.25024988,4190.1,4190.0,1.3192]
[1758630363069,0.25024988,4190.1,4190.0,0.8899]
[1758630363274,0.25024988,4190.1,4190.0,1.3192]
[1758630366170,0.25024988,4190.1,4190.0,0.8899]
[1758630366669,0.25024988,4190.1,4190.0,1.3192]
[1758630368274,0.35844988,4190.1,4189.5,0.1345]
[1758630368469,0.4116,4189.6,4189.5,0.5542]
[1758630368977,0.4116,4189.6,4189.5,0.8899]
[1758630369275,0.84094,4189.6,4189.5,0.8899]
[1758630369476,0.7285,4189.6,4189.5,1.31925]
[1758630369677,0.4116,4189.6,4189.5,1.31925]
[1758630369977,0.4116,4189.6,4189.5,0.8899]
[1758630370177,1.15784,4189.6,4189.5,0.3357]
[1758630370478,1.15784,4189.6,4189.5,0.5531]
[1758630371973,0.7285,4189.6,4189.5,0.5531]
[1758630372173,0.7285,4189.6,4189.5,0.6811]
[1758630372368,3.2078,4189.9,4189.8,0.4087]
[1758630372575,4.30561,4189.9,4189.8,0.7362]
[1758630372775,4.38911,4189.9,4189.8,0.7362]
[1758630372973,4.63111,4189.9,4189.8,0.7362]
[1758630374478,3.8763,4189.9,4189.8,0.7362]
[1758630374685,3.4498,4189.9,4189.8,1.16552]
[1758630375187,3.6568,4189.9,4189.8,1.16552]
[1758630375585,3.2078,4189.9,4189.8,1.16552]
[1758630376983,3.2078,4190.4,4190.0,1.09]
[1758630377180,3.2078,4190.4,4190.0,1.2935]
[1758630380086,4.3055,4191.0,4190.9,0.7362]
[1758630380282,4.3055,4191.0,4190.9,0.3275]
[1758630380283,4.631,4191.0,4190.9,0.3275]
[1758630380591,3.45634071,4191.0,4190.9,1.1654]
[1758630380983,3.24934071,4191.0,4190.9,1.1654]
[1758630381182,3.45634071,4191.0,4190.9,1.1654]
[1758630383687,3.88553071,4191.0,4190.9,0.7362]
[1758630383889,4.41783071,4191.0,4190.9,0.7362]
[1758630384190,4.41783071,4191.0,4190.9,1.1654]
[1758630384890,4.41783071,4191.0,4190.9,0.7362]
[1758630385087,4.41783071,4191.0,4190.9,0.5327]
[1758630385292,0.7514,4190.6,4190.5,0.76094]
[1758630385794,1.18063,4190.6,4190.5,0.6623]
[1758630386494,1.18063,4190.6,4190.5,1.09154]
[1758630387095,1.18063,4190.6,4190.5,1.29764]
[1758630388992,0.7514,4190.6,4190.5,1.29764]
[1758630389398,0.4264,4190.6,4190.5,1.29764]
[1758630390600,0.2191,4190.6,4190.5,1.29764]
[1758630390996,0.89031,4190.9,4190.8,1.16961]
[1758630391397,1.09761,4190.9,4190.8,1.16961]
[1758630391598,1.09761,4190.9,4190.8,0.7404]
[1758630391902,1.42261,4190.9,4190.8,0.7404]
[1758630393002,1.42261,4190.9,4190.8,1.16961]
[1758630393500,1.42261,4190.9,4190.8,0.7404]
[1758630393800,0.4264,4190.6,4190.5,0.96704]
[1758630394301,0.4256,4190.6,4190.5,1.29764]
[1758630397801,1.17903,4190.6,4190.5,0.8684]
[1758630398006,1.17903,4190.6,4190.5,0.5343]
[1758630398308,1.17903,4190.6,4190.5,0.96354]
[1758630398910,0.7498,4190.6,4190.5,1.08584]
[1758630399100,0.7498,4190.6,4190.5,1.29194]
[1758630399609,0.4256,4190.6,4190.5,1.29194]
[1758630400710,0.2183,4190.6,4190.5,1.29194]
[1758630400902,0.89031,4190.9,4190.8,0.7404]
[1758630401510,0.89031,4190.9,4190.8,1.16961]
[1758630402012,0.6684,4190.9,4190.8,1.16961]
[1758630403005,0.4264,4190.9,4190.8,1.16961]
[1758630403207,0.6684,4190.9,4190.8,1.16961]
[1758630405012,1.0976,4190.9,4190.8,0.7404]
[1758630405711,1.0976,4190.9,4190.8,1.16961]
[1758630406910,0.6684,4190.9,4190.8,1.16961]
[1758630407912,0.242,4190.9,4190.8,1.16961]
[1758630408812,0.8903,4190.9,4190.8,0.7404]
[1758630409019,1.0976,4190.9,4190.8,0.7404]
[1758630409507,0.6684,4190.9,4190.8,0.7404]
[1758630410515,0.6684,4190.9,4190.8,1.16961]
[1758630411216,1.0976,4190.9,4190.8,0.7404]
[1758630411414,1.4218,4190.9,4190.8,0.7404]
[1758630411810,1.4218,4190.9,4190.8,1.16961]
[1758630412012,0.9926,4190.9,4190.8,1.16961]
[1758630412212,1.4218,4190.9,4190.8,0.7404]
[1758630412613,0.9926,4190.9,4190.8,1.16961]
[1758630414625,1.4218,4190.9,4190.8,0.7404]
[1758630414815,0.4336,4190.6,4190.5,0.1223]
[1758630415014,0.4336,4190.6,4190.5,0.6439]
[1758630415015,0.7578,4190.6,4190.5,0.6439]
[1758630415215,0.4336,4190.6,4190.5,1.27734]
[1758630415413,0.2193,4190.6,4190.5,1.27734]
[1758630416615,0.242,4190.7,4190.6,0.42923]
[1758630416812,0.4613,4190.7,4190.6,1.15503]
[1758630420120,0.89052,4190.7,4190.6,0.7258]
[1758630420318,0.3243,4190.1,4189.5,3.3358]
[1758630420617,1.18719,4190.1,4190.0,0.2177]
[1758630420817,4.39499,4190.1,4190.0,0.2177]
[1758630421120,3.9657,4190.1,4190.0,0.2177]
[1758630421318,3.9657,4190.1,4190.0,0.8512]
[1758630421520,3.2078,4190.1,4190.0,0.974]
[1758630422020,3.7514,4190.1,4190.0,0.974]
[1758630422217,3.9657,4190.1,4190.0,0.4219]
[1758630422722,3.9657,4190.1,4190.0,0.7258]
[1758630423123,4.39499,4190.1,4190.0,0.7258]
[1758630424122,4.39499,4190.1,4190.0,0.5216]
[1758630424814,0.7579,4189.9,4189.6,0.3039]
[1758630425120,0.9999,4189.9,4189.5,0.42935]
[1758630425309,1.18722,4189.8,4189.7,0.2177]
[1758630425513,1.18722,4189.8,4189.7,0.5216]
[1758630427224,0.7579,4189.8,4189.7,0.95093]
[1758630428228,0.7579,4189.8,4189.7,1.15513]
[1758630428420,1.18722,4189.8,4189.7,0.7258]
[1758630431019,0.242,4189.9,4189.7,0.7258]
[1758630431323,0.0799332,4189.9,4189.8,1.15512]
[1758630431821,0.6235332,4189.9,4189.8,1.15512]
[1758630432126,0.8378332,4189.9,4189.8,0.7258]
[1758630432516,1.2671432,4189.9,4189.8,0.7258]
[1758630432717,1.18721,4189.9,4189.8,0.7258]
[1758630433121,0.98145,4189.5,4189.2,0.3234]
[1758630433321,3.636,4189.4,4189.3,0.7442]
[1758630433524,3.636,4189.4,4189.3,1.17357]
[1758630433920,3.9441,4189.4,4189.3,1.17357]
[1758630436239,4.37346,4189.4,4189.3,0.7442]
[1758630436535,3.9441,4189.4,4189.3,1.17357]
[1758630437032,1.16569,4189.1,4189.0,0.5324]
[1758630437228,0.8602,4189.0,4188.9,0.75281]
[1758630437539,0.8602,4189.0,4188.9,0.5324]
[1758630437928,0.8602,4189.0,4188.9,0.96181]
[1758630438229,0.7363,4189.0,4188.9,1.17361]
[1758630439237,0.2058,4189.0,4188.9,0.85021]
[1758630439442,0.7363,4189.3,4189.2,0.85018]
[1758630439734,3.2078,4189.4,4189.3,0.85017]
[1758630440135,3.4136,4189.4,4189.3,0.85017]
[1758630440445,3.7217,4189.4,4189.3,0.85017]
[1758630441037,3.7217,4189.4,4189.3,1.17357]
[1758630441244,3.9441,4189.4,4189.3,0.7442]
[1758630441447,4.37346,4189.4,4189.3,0.5324]
[1758630441935,4.61546,4189.4,4189.3,0.5324]
[1758630442442,4.1861,4189.4,4189.3,0.5324]
[1758630443542,4.61546,4189.4,4189.3,0.5324]
[1758630444243,3.9441,4189.4,4189.3,1.17357]
[1758630444943,3.9441,4189.4,4189.3,0.7442]
[1758630446051,3.9441,4189.4,4189.3,1.17357]
[1758630447356,3.2078,4189.4,4189.3,1.17357]
[1758630449145,3.4122,4189.4,4189.3,1.17357]
[1758630449347,3.7415,4189.4,4189.3,1.17357]
[1758630449647,3.9602,4189.4,4189.3,1.17357]
[1758630451256,3.6309,4189.4,4189.3,1.17357]
[1758630451554,3.4122,4189.4,4189.3,1.17357]
[1758630453054,3.7415,4189.4,4189.3,1.17357]
[1758630454059,3.9602,4189.4,4189.3,1.17357]
[1758630454355,4.38956,4189.4,4189.3,1.17357]
[1758630454654,3.9602,4189.4,4189.3,1.17357]
[1758630456854,3.2078,4189.4,4189.3,1.17357]
[1758630457057,3.7415,4190.1,4190.0,1.3085]
[1758630457256,3.4122,4190.1,4190.0,1.3085]
[1758630457853,3.7415,4190.1,4190.0,1.3085]
[1758630458456,3.2078,4190.1,4190.0,5.54716]
[1758630458959,3.7415,4190.6,4190.5,1.30844]
[1758630459960,3.9602,4190.6,4190.5,1.30844]
[1758630461063,0.7524,4190.6,4190.5,1.30844]
[1758630462056,0.5337,4190.6,4190.5,1.30844]
[1758630462263,0.5337,4190.9,4190.8,1.17821]
[1758630462562,0.7524,4190.9,4190.8,1.17821]
[1758630467965,0.4231,4190.5,4190.4,0.75456]
[1758630468267,0.7524,4190.5,4190.4,1.17826]
[1758630469672,0.7524,4190.5,4190.4,0.749]
[1758630469870,0.8842,4190.5,4190.4,0.749]
[1758630470070,0.8842,4190.5,4190.4,0.4484]
[1758630470271,1.31344,4190.5,4190.4,0.241]
[1758630470468,0.3293,4190.4,4190.3,3.63706]
[1758630470772,0.7524,4190.4,4190.3,3.63706]
[1758630471070,0.7524,4190.4,4190.3,4.16976]
[1758630471267,0.7524,4190.4,4190.3,4.38606]
[1758630471670,0.5337,4190.4,4190.3,4.38606]
[1758630472471,0.7524,4190.4,4190.3,4.38606]
[1758630472970,1.18166,4190.4,4190.3,4.38606]
[1758630473163,0.42927,4190.3,4190.2,0.67027]
[1758630473477,1.17497,4190.3,4190.2,0.67027]
[1758630473679,0.7457,4190.3,4190.2,0.89007]
[1758630473970,0.7457,4190.3,4190.2,1.41887]
[1758630474872,1.17497,4190.3,4190.2,0.9896]
[1758630475371,1.17497,4190.3,4190.2,0.241]
[1758630475774,0.4293,4190.0,4189.9,0.3062]
[1758630476075,0.73531,4189.9,4189.8,3.2078]
[1758630476273,1.17501,4189.9,4189.8,3.2078]
[1758630477075,1.17501,4189.9,4189.8,3.7338]
[1758630478272,0.7457,4189.9,4189.8,4.1974]
[1758630478476,1.17501,4189.9,4189.8,4.1974]
[1758630478868,1.17503,4189.7,4189.6,0.526]
[1758630479063,1.17503,4189.7,4189.6,0.767]
[1758630479662,1.17503,4189.7,4189.6,0.9896]
[1758630480174,1.17503,4189.7,4189.6,0.241]
[1758630480476,1.17506,4189.4,4189.3,0.7486]
[1758630480775,0.7457,4189.4,4189.3,1.41897]
[1758630481870,1.17506,4189.4,4189.3,1.41897]
[1758630483673,1.17506,4189.4,4189.3,0.9896]
[1758630483875,0.73537,4189.3,4189.2,3.2078]
[1758630484078,1.17507,4189.3,4189.2,3.9748]
[1758630484676,0.7457,4189.3,4189.2,4.62678]
[1758630484978,1.17507,4189.3,4189.2,3.9564]
[1758630485277,1.17507,4189.3,4189.2,4.62678]
[1758630485578,0.7457,4189.3,4189.2,4.62678]
[1758630486279,0.42935,4189.5,4189.4,1.17796]
[1758630486481,0.95275,4189.5,4189.4,1.41896]
[1758630487273,1.17505,4189.5,4189.4,1.41896]
[1758630487782,1.17505,4189.5,4189.4,1.17796]
[1758630487975,1.17505,4189.5,4189.4,1.41896]
[1758630488175,1.17505,4189.5,4189.4,1.17796]
[1758630488375,1.17505,4189.5,4189.4,1.41896]
[1758630488683,1.17505,4189.5,4189.4,0.9896]
[1758630489079,1.17505,4189.5,4189.4,1.41896]
[1758630489285,1.17505,4189.5,4189.4,0.9896]
[1758630490085,1.29895,4189.5,4189.4,0.9896]
[1758630490278,1.29895,4189.5,4189.4,0.526]
[1758630490480,1.29895,4189.5,4189.4,0.4608]
[1758630491278,1.29895,4189.5,4189.4,0.241]
[1758630491786,0.42937,4189.3,4189.2,3.514]
[1758630491987,1.18657,4189.3,4189.2,3.755]
[1758630492180,1.18657,4189.3,4189.2,3.9678]
[1758630492379,0.7572,4189.3,4189.2,4.39718]
[1758630492686,0.7572,4189.3,4189.2,4.62158]
[1758630493078,0.2151,4189.3,4189.2,4.62158]
[1758630493280,0.96234,4189.6,4189.5,0.8791]
[1758630493481,0.2151,4189.6,4189.5,1.30845]
[1758630494283,0.533,4189.6,4189.5,1.30845]